bitfinex-derivatives/quotes_SOLF0:USTF0_20241215
["timestamp","ask_amount","ask_price","bid_price","bid_amount"]
[1734257006492,4.2402,219.36,219.31,2.2806]
[1734257006692,4.2402,219.36,219.32,5.09198331]
[1734257006991,4.2402,219.36,219.33,5.09198331]
[1734257007193,4.2402,219.36,219.31,2.2806]
[1734257007397,4.2402,219.36,219.32,5.09462662]
[1734257007597,4.2402,219.36,219.33,5.09462662]
[1734257007893,4.2402,219.36,219.31,2.2806]
[1734257008097,4.2402,219.36,219.32,5.09447379]
[1734257008298,4.2402,219.36,219.33,5.09447379]
[1734257008601,4.2402,219.36,219.34,5.09447379]
[1734257008795,4.2402,219.36,219.31,2.2806]
[1734257009106,4.2402,219.36,219.32,5.09858709]
[1734257009396,4.2402,219.36,219.33,5.09858709]
[1734257009602,4.2402,219.36,219.34,5.09858709]
[1734257009797,4.2402,219.36,219.31,2.2806]
[1734257010099,4.2402,219.36,219.32,5.09859081]
[1734257010401,4.2402,219.36,219.31,2.2806]
[1734257010402,4.2402,219.36,219.33,5.0983271]
[1734257010602,4.2402,219.36,219.34,5.09836621]
[1734257010799,4.2402,219.36,219.31,2.2806]
[1734257010999,4.2402,219.36,219.32,5.09839873]
[1734257011202,4.2402,219.36,219.33,5.09839873]
[1734257011502,4.2402,219.36,219.34,5.09852572]
[1734257011694,4.2402,219.36,219.31,2.2806]
[1734257011918,4.2402,219.36,219.32,5.09852296]
[1734257012092,4.2402,219.36,219.33,5.09852296]
[1734257012402,1.96,219.36,219.34,5.09895973]
[1734257012602,1.96,219.36,219.33,2.2804]
[1734257012903,1.96,219.36,219.34,5.09972549]
[1734257013094,1.96,219.36,219.35,5.09977968]
[1734257015202,1.96,219.36,219.34,2.2803]
[1734257015405,1.96,219.36,219.35,5.10068201]
[1734257015602,8.67060568,219.39,219.35,5.10068201]
[1734257015906,1.96,219.38,219.36,5.10068201]
[1734257016098,1.96,219.38,219.34,2.2803]
[1734257016302,1.96,219.38,219.35,5.10015319]
[1734257016508,1.96,219.38,219.36,5.10015319]
[1734257016708,1.96,219.38,219.34,2.2803]
[1734257016908,1.96,219.38,219.35,5.09989066]
[1734257017100,1.96,219.38,219.34,2.2803]
[1734257017101,1.96,219.38,219.36,5.09989066]
[1734257017300,1.96,219.38,219.34,2.2803]
[1734257017504,1.96,219.38,219.35,5.09965402]
[1734257017700,1.96,219.38,219.36,5.09965402]
[1734257017902,8.67060568,219.39,219.34,2.2803]
[1734257018102,1.96,219.38,219.35,5.09967541]
[1734257018323,1.96,219.38,219.34,2.2803]
[1734257018511,1.96,219.38,219.32,6.39080568]
[1734257018512,1.96,219.38,219.35,7.37974498]
[1734257018709,2.2797,219.4,219.35,7.37974498]
[1734257018710,4.2397,219.4,219.35,7.37974498]
[1734257018910,1.96,219.4,219.36,5.09954498]
[1734257019215,1.96,219.4,219.37,5.09954498]
[1734257019413,1.96,219.4,219.34,6.39080568]
[1734257019711,8.35080568,219.41,219.36,2.28]
[1734257019906,1.96,219.41,219.37,5.09797298]
[1734257020112,1.96,219.41,219.38,7.37683636]
[1734257020311,1.96,219.41,219.38,2.2799]
[1734257020813,1.96,219.41,219.37,2.28]
[1734257021010,1.96,219.41,219.38,5.09547628]
[1734257021213,1.96,219.41,219.37,2.28]
[1734257021407,6.39080568,219.42,219.38,5.09439041]
[1734257021608,6.39080568,219.42,219.37,2.28]
[1734257021814,8.67030568,219.42,219.38,5.09441196]
[1734257022114,2.2795,219.42,219.37,2.28]
[1734257022305,2.2795,219.42,219.38,5.09370767]
[1734257022503,2.2795,219.42,219.37,8.67080568]
[1734257022705,2.2795,219.42,219.38,5.09248042]
[1734257022904,2.2795,219.42,219.37,8.67080568]
[1734257023108,1.96,219.43,219.38,7.37238042]
[1734257023309,1.96,219.43,219.39,5.09248042]
[1734257023608,4.2392,219.45,219.39,8.67050568]
[1734257023917,1.96,219.45,219.4,5.08981558]
[1734257024114,1.96,219.45,219.41,5.08981558]
[1734257024414,1.96,219.45,219.39,6.39080568]
[1734257024614,1.96,219.45,219.4,5.08747858]
[1734257024917,1.96,219.45,219.39,6.39080568]
[1734257025616,1.96,219.45,219.4,2.2796]
[1734257026110,1.96,219.45,219.39,6.39080568]
[1734257026309,8.66990568,219.46,219.36,1.5198]
[1734257026310,1.96,219.46,219.42,2.2794]
[1734257027016,6.39080568,219.48,219.43,2.2794]
[1734257027216,8.35080568,219.48,219.43,2.2794]
[1734257027815,6.39080568,219.48,219.43,2.2794]
[1734257028117,8.35080568,219.48,219.43,2.2794]
[1734257029421,10.62970568,219.48,219.43,2.2794]
[1734257030511,2.9666,219.5,219.43,2.2794]
[1734257030512,3.7011,219.5,219.44,2.2793]
[1734257030716,4.2387,219.5,219.43,6.39080568]
[1734257031716,4.2387,219.5,219.45,2.2792]
[1734257032919,2.2787,219.5,219.45,2.2792]
[1734257033120,2.2787,219.5,219.45,8.67000568]
[1734257033917,10.62940568,219.51,219.45,8.67000568]
[1734257034233,8.66940568,219.51,219.45,8.67000568]
[1734257037523,2.2786,219.51,219.45,8.67000568]
[1734257038824,5.46633053,219.57,219.47,6.39080568]
[1734257039015,2.2783,219.54,219.47,8.66970568]
[1734257039218,2.2783,219.54,219.47,6.39080568]
[1734257039416,4.2383,219.54,219.49,6.39080568]
[1734257040519,1.96,219.54,219.49,6.39080568]
[1734257040721,6.39080568,219.53,219.44,5.47344459]
[1734257040925,6.39080568,219.51,219.44,5.47344459]
[1734257041130,6.39080568,219.49,219.43,83.27918441]
[1734257041427,2.2789,219.48,219.43,83.27918441]
[1734257041924,2.279,219.47,219.43,83.27918441]
[1734257043024,2.279,219.47,219.43,88.87630411]
[1734257047330,6.39080568,219.47,219.37,1.4759]
[1734257047530,6.39080568,219.47,219.4,6.39080568]
[1734257048130,2.2794,219.44,219.4,6.39080568]
[1734257049127,2.2794,219.43,219.4,6.39080568]
[1734257053730,4.2393,219.45,219.4,6.39080568]
[1734257054130,1.96,219.45,219.4,6.39080568]
[1734257055531,2.2794,219.43,219.4,6.39080568]
[1734257056730,1.96,219.45,219.4,6.39080568]
[1734257056935,4.2393,219.45,219.4,6.39080568]
[1734257057339,1.96,219.45,219.4,6.39080568]
[1734257057638,2.2794,219.43,219.4,6.39080568]
[1734257058738,1.96,219.45,219.4,6.39080568]
[1734257058739,2.2793,219.44,219.4,6.39080568]
[1734257062548,2.2793,219.44,219.4,8.67040568]
[1734257065150,2.2793,219.44,219.4,2.2796]
[1734257069153,4.2391,219.45,219.41,2.2795]
[1734257070954,2.2792,219.44,219.39,14.05233962]
[1734257071156,2.2792,219.44,219.4,5.0905239]
[1734257071352,2.2792,219.44,219.41,5.0905239]
[1734257071547,2.2792,219.44,219.39,14.05233962]
[1734257071852,2.2792,219.44,219.4,5.09081363]
[1734257072053,2.2792,219.44,219.41,5.09081363]
[1734257072248,8.35080568,219.45,219.37,2.2798]
[1734257072555,8.35080568,219.45,219.38,5.09150775]
[1734257072556,6.39080568,219.43,219.38,5.09150775]
[1734257072953,6.39080568,219.43,219.39,5.09150775]
[1734257073153,6.39080568,219.43,219.36,8.67080568]
[1734257073154,2.2795,219.41,219.36,8.67080568]
[1734257073458,1.96,219.4,219.37,5.09156984]
[1734257073649,1.96,219.4,219.38,5.09156984]
[1734257073852,1.96,219.4,219.39,5.09156984]
[1734257075666,1.96,219.4,219.37,2.2799]
[1734257075854,1.96,219.4,219.39,5.0909482]
[1734257078863,1.96,219.43,219.39,5.0909482]
[1734257079062,1.96,219.43,219.38,6.39080568]
[1734257079264,1.96,219.43,219.39,5.09144978]
[1734257079562,1.96,219.43,219.38,6.39080568]
[1734257079758,1.96,219.43,219.39,5.09175703]
[1734257079958,1.96,219.43,219.38,6.39080568]
[1734257080264,1.96,219.43,219.39,5.09187798]
[1734257080460,1.96,219.43,219.4,11.48268366]
[1734257080661,1.96,219.43,219.4,8.67030568]
[1734257081957,2.9436,219.52,219.4,6.39080568]
[1734257082153,2.9436,219.52,219.42,6.39080568]
[1734257082154,6.39080568,219.48,219.42,6.39080568]
[1734257082354,1.96,219.47,219.42,6.39080568]
[1734257083064,6.39080568,219.5,219.44,6.39080568]
[1734257083267,1.96,219.49,219.44,6.39080568]
[1734257084165,1.96,219.49,219.45,5.09228437]
[1734257084358,1.96,219.49,219.46,5.09228437]
[1734257084564,1.96,219.49,219.44,8.66990568]
[1734257084758,1.96,219.49,219.45,5.09260018]
[1734257084961,1.96,219.49,219.44,8.66990568]
[1734257085162,1.96,219.49,219.45,5.09284034]
[1734257085365,1.96,219.49,219.46,5.09284034]
[1734257085565,1.96,219.49,219.44,8.66990568]
[1734257085964,1.96,219.49,219.45,5.09236161]
[1734257086161,1.96,219.49,219.44,8.66990568]
[1734257086361,1.96,219.49,219.45,5.09184265]
[1734257086557,1.96,219.49,219.46,5.09184265]
[1734257086861,1.4029,219.56,219.46,5.09184265]
[1734257086862,4.2384,219.52,219.46,6.39080568]
[1734257087058,4.2384,219.52,219.47,5.09094263]
[1734257087266,2.2784,219.52,219.46,6.39080568]
[1734257087464,4.2384,219.52,219.47,5.09010672]
[1734257087666,4.2384,219.52,219.46,6.39080568]
[1734257087862,4.2384,219.52,219.47,5.09005567]
[1734257088062,4.2384,219.52,219.48,5.09005567]
[1734257088368,4.2384,219.52,219.46,6.39080568]
[1734257088565,4.2384,219.52,219.47,7.36738828]
[1734257088762,4.2384,219.52,219.48,5.08858828]
[1734257089066,1.96,219.52,219.48,6.39080568]
[1734257089362,4.2381,219.53,219.48,6.39080568]
[1734257090060,6.39080568,219.54,219.48,6.39080568]
[1734257090061,6.39080568,219.54,219.48,8.66940568]
[1734257090271,1.96,219.53,219.48,8.66940568]
[1734257092258,6.39080568,219.56,219.48,6.39080568]
[1734257092462,4.2379,219.55,219.5,8.66920568]
[1734257101768,60.57352675,219.59,219.52,6.39080568]
[1734257102068,2.2778,219.56,219.52,6.39080568]
[1734257102267,1.96,219.57,219.52,6.39080568]
[1734257102468,4.2377,219.57,219.52,6.39080568]
[1734257103363,1.4784,219.64,219.56,6.39080568]
[1734257103563,1.96,219.62,219.58,6.39080568]
[1734257104570,1.96,219.62,219.58,8.66830568]
[1734257105170,2.2775,219.6,219.54,2.278]
[1734257105372,6.39080568,219.6,219.54,6.39080568]
[1734257105673,2.2774,219.6,219.55,2.2779]
[1734257105872,1.96,219.62,219.58,6.39080568]
[1734257107575,1.96,219.62,219.58,8.66840568]
[1734257109571,1.96,219.62,219.59,6.39080568]
[1734257110272,1.96,219.62,219.58,2.2776]
[1734257110467,1.96,219.62,219.58,8.66840568]
[1734257110775,6.39080568,219.65,219.58,8.66840568]
[1734257110776,1.96,219.63,219.58,8.66840568]
[1734257110972,1.96,219.63,219.6,6.39080568]
[1734257111476,1.96,219.65,219.6,6.39080568]
[1734257111774,1.96,219.66,219.6,6.39080568]
[1734257112175,4.2368,219.66,219.61,2.2772]
[1734257112372,52.38982,219.7,219.62,6.39080568]
[1734257112572,8.35080568,219.68,219.62,6.39080568]
[1734257112776,10.62750568,219.68,219.62,8.66790568]
[1734257112975,8.35080568,219.68,219.62,8.66790568]
[1734257114074,6.39080568,219.68,219.62,8.66790568]
[1734257114274,1.96,219.67,219.62,8.66790568]
[1734257114575,4.2367,219.67,219.62,8.66790568]
[1734257115873,2.2767,219.67,219.62,8.66790568]
[1734257116078,4.2367,219.67,219.62,8.66790568]
[1734257116674,4.2367,219.67,219.62,6.39080568]
[1734257117068,8.66760568,219.66,219.6,8.66810568]
[1734257117273,6.39080568,219.66,219.6,6.39080568]
[1734257118276,8.66760568,219.66,219.6,6.39080568]
[1734257119380,2.2768,219.66,219.6,6.39080568]
[1734257119779,2.2769,219.65,219.6,6.39080568]
[1734257121477,2.2769,219.65,219.62,6.39080568]
[1734257125677,4.2367,219.67,219.62,6.39080568]
[1734257125878,0.24982,219.7,219.64,6.39080568]
[1734257125879,1.96,219.68,219.64,6.39080568]
[1734257126282,0.24982,219.7,219.64,6.39080568]
[1734257126283,4.2365,219.69,219.64,6.39080568]
[1734257126880,0.24982,219.7,219.68,6.39080568]
[1734257129876,0.24982,219.7,219.69,6.39080568]
[1734257131275,0.24982,219.7,219.63,77.17025675]
[1734257131477,0.24982,219.7,219.66,6.39080568]
[1734257131684,2.20982,219.7,219.66,6.39080568]
[1734257132008,0.24982,219.7,219.68,6.39080568]
[1734257132282,4.8372,219.79,219.68,6.39080568]
[1734257132478,4.8372,219.79,219.63,77.17025675]
[1734257132479,5.49996445,219.83,219.77,6.39080568]
[1734257132676,6.39080568,219.84,219.77,6.39080568]
[1734257132677,1.96,219.81,219.77,6.39080568]
[1734257133181,2.2753,219.8,219.76,6.39080568]
[1734257133881,2.2754,219.79,219.76,6.39080568]
[1734257134287,1.96,219.81,219.74,6.39080568]
[1734257134489,6.39080568,219.8,219.72,6.39080568]
[1734257134683,6.39080568,219.78,219.72,6.39080568]
[1734257134885,1.96,219.77,219.72,6.39080568]
[1734257135286,2.2758,219.75,219.72,6.39080568]
[1734257136785,2.2758,219.75,219.74,6.39080568]
[1734257137191,2.2758,219.75,219.72,6.39080568]
[1734257137487,1.96,219.77,219.67,4.2367]
[1734257137488,2.276,219.73,219.67,4.2367]
[1734257137787,2.276,219.73,219.64,4.948]
[1734257137788,1.96,219.73,219.64,4.948]
[1734257137983,6.39080568,219.76,219.68,6.39080568]
[1734257138186,1.96,219.75,219.68,6.39080568]
[1734257138399,1.96,219.75,219.66,2.2768]
[1734257138790,1.96,219.75,219.69,6.39080568]
[1734257139789,2.2761,219.73,219.69,6.39080568]
[1734257139990,1.96,219.75,219.69,6.39080568]
[1734257140588,4.2359,219.75,219.69,6.39080568]
[1734257140996,1.96,219.75,219.69,6.39080568]
[1734257141388,2.276,219.73,219.69,6.39080568]
[1734257141890,1.96,219.75,219.69,6.39080568]
[1734257142089,2.2759,219.74,219.69,6.39080568]
[1734257142391,2.2759,219.74,219.68,2.2765]
[1734257142585,2.2759,219.74,219.7,6.39080568]
[1734257143390,2.2761,219.73,219.7,6.39080568]
[1734257145687,2.2761,219.73,219.67,7.74580215]
[1734257145890,2.2761,219.73,219.69,6.39080568]
[1734257146991,1.96,219.75,219.69,6.39080568]
[1734257147194,2.2759,219.74,219.69,6.39080568]
[1734257148591,2.2759,219.74,219.71,6.39080568]
[1734257150697,1.96,219.75,219.71,6.39080568]
[1734257150892,2.2761,219.73,219.71,6.39080568]
[1734257155299,7.85130568,219.78,219.71,6.39080568]
[1734257155300,2.2761,219.72,219.71,6.39080568]
[1734257155498,4.2361,219.72,219.71,6.39080568]
[1734257158894,1.96,219.72,219.71,6.39080568]
[1734257161303,1.96,219.72,219.67,7.74580215]
[1734257161500,8.35080568,219.72,219.64,79.36912094]
[1734257161803,8.35080568,219.72,219.64,6.39080568]
[1734257161996,6.39080568,219.7,219.64,6.39080568]
[1734257163308,6.39080568,219.7,219.57,80.64075679]
[1734257163499,6.39080568,219.7,219.62,6.39080568]
[1734257164106,6.39080568,219.7,219.64,6.39080568]
[1734257164604,2.2769,219.66,219.64,6.39080568]
[1734257164907,1.96,219.65,219.64,6.39080568]
[1734257165606,4.2369,219.65,219.6,5.45827072]
[1734257165903,4.2369,219.65,219.63,6.39080568]
[1734257167108,4.2369,219.65,219.6,5.45827072]
[1734257167407,4.2369,219.65,219.57,80.64075679]
[1734257167408,1.96,219.65,219.62,6.39080568]
[1734257168309,2.277,219.64,219.62,6.39080568]
[1734257169099,1.96,219.65,219.62,6.39080568]
[1734257169312,2.2771,219.63,219.62,6.39080568]
[1734257170003,1.96,219.65,219.6,6.39080568]
[1734257170400,1.96,219.65,219.53,1.5383]
[1734257170600,6.39080568,219.62,219.54,5.08271512]
[1734257170801,6.39080568,219.62,219.46,2.9832]
[1734257170802,6.39080568,219.6,219.53,6.39080568]
[1734257171002,2.278,219.54,219.53,6.39080568]
[1734257171208,4.238,219.54,219.53,6.39080568]
[1734257171911,1.96,219.54,219.53,6.39080568]
[1734257172212,6.39080568,219.6,219.53,6.39080568]
[1734257172213,1.96,219.55,219.53,6.39080568]
[1734257172408,1.5177,219.61,219.53,6.39080568]
[1734257172608,1.96,219.6,219.56,6.39080568]
[1734257172911,1.96,219.59,219.56,6.39080568]
[1734257173209,6.39080568,219.64,219.56,6.39080568]
[1734257173210,1.96,219.58,219.56,6.39080568]
[1734257173404,6.39080568,219.64,219.56,6.39080568]
[1734257173405,1.96,219.57,219.56,6.39080568]
[1734257174310,2.2775,219.59,219.56,6.39080568]
[1734257174505,4.2375,219.59,219.56,6.39080568]
[1734257174902,1.96,219.59,219.56,6.39080568]
[1734257176106,1.96,219.59,219.58,6.39080568]
[1734257177708,1.96,219.59,219.53,2.278]
[1734257178013,1.96,219.59,219.56,6.39080568]
[1734257178605,1.96,219.59,219.58,6.39080568]
[1734257180303,1.96,219.62,219.58,6.39080568]
[1734257180514,1.96,219.62,219.6,6.39080568]
[1734257180908,1.96,219.63,219.6,6.39080568]
[1734257181106,1.96,219.63,219.62,6.39080568]
[1734257182609,1.96,219.63,219.6,6.39080568]
[1734257183612,1.96,219.63,219.58,6.39080568]
[1734257183805,6.39080568,219.67,219.58,6.39080568]
[1734257184006,2.2773,219.62,219.58,6.39080568]
[1734257184218,1.96,219.61,219.58,6.39080568]
[1734257184520,4.2373,219.61,219.58,6.39080568]
[1734257184910,1.96,219.61,219.58,6.39080568]
[1734257185715,4.2373,219.61,219.58,6.39080568]
[1734257186822,1.96,219.61,219.58,6.39080568]
[1734257188419,1.96,219.61,219.6,6.39080568]
[1734257188610,2.2768,219.66,219.6,6.39080568]
[1734257188810,2.2768,219.66,219.63,6.39080568]
[1734257189012,4.2368,219.66,219.63,6.39080568]
[1734257190318,4.2368,219.66,219.6,2.2773]
[1734257190319,2.2769,219.65,219.61,6.39080568]
[1734257193921,2.2769,219.65,219.63,6.39080568]
[1734257194121,1.96,219.66,219.63,6.39080568]
[1734257194320,1.96,219.66,219.55,1.96]
[1734257194321,1.96,219.67,219.65,6.39080568]
[1734257196627,1.96,219.67,219.65,6.39080568]
[1734257197225,63.64584986,219.73,219.65,6.39080568]
[1734257197430,63.64584986,219.73,219.68,6.39080568]
[1734257197824,1.96,219.72,219.68,6.39080568]
[1734257198724,4.2362,219.72,219.68,6.39080568]
[1734257202928,4.2362,219.72,219.67,2.2767]
[1734257203227,4.2362,219.72,219.68,6.39080568]
[1734257204525,0.25212,219.83,219.68,6.39080568]
[1734257204829,2.2761,219.73,219.68,6.39080568]
[1734257206235,2.2761,219.73,219.68,8.66730568]
[1734257206527,2.2761,219.73,219.7,6.39080568]
[1734257206731,1.96,219.77,219.72,6.39080568]
[1734257208726,2.2758,219.75,219.72,6.39080568]
[1734257210234,4.2358,219.75,219.72,6.39080568]
[1734257210433,1.96,219.75,219.72,6.39080568]
[1734257210630,2.2757,219.77,219.72,6.39080568]
[1734257211230,2.2757,219.76,219.72,6.39080568]
[1734257211637,2.2757,219.76,219.7,2.2763]
[1734257211837,2.2757,219.76,219.73,6.39080568]
[1734257213531,2.2756,219.78,219.73,6.39080568]
[1734257217237,1.96,219.79,219.73,6.39080568]
[1734257217539,2.2756,219.77,219.73,6.39080568]
[1734257219439,4.2355,219.79,219.73,6.39080568]
[1734257219832,4.2355,219.79,219.75,6.39080568]
[1734257221235,2.2755,219.78,219.73,2.276]
[1734257221436,1.96,219.79,219.74,6.39080568]
[1734257222136,2.2756,219.77,219.74,6.39080568]
[1734257223740,2.2756,219.77,219.72,2.2761]
[1734257223939,4.2355,219.79,219.75,6.39080568]
[1734257224134,1.96,219.79,219.75,6.39080568]
[1734257225738,2.2755,219.78,219.75,6.39080568]
[1734257228748,0.25212,219.83,219.77,6.39080568]
[1734257228945,1.96,219.82,219.77,6.39080568]
[1734257229439,4.2351,219.82,219.77,6.39080568]
[1734257229643,2.21212,219.83,219.77,6.39080568]
[1734257229849,2.52712,219.83,219.79,6.39080568]
[1734257230250,0.25212,219.83,219.79,6.39080568]
[1734257230447,0.25212,219.83,219.81,6.39080568]
[1734257234547,0.25212,219.83,219.78,2.2755]
[1734257234753,0.25212,219.83,219.81,6.39080568]
[1734257236248,0.25212,219.83,219.58,63.80778935]
[1734257236453,6.39080568,219.82,219.76,6.39080568]
[1734257236653,1.96,219.81,219.76,6.39080568]
[1734257237449,2.2753,219.8,219.77,6.39080568]
[1734257239356,2.2754,219.79,219.77,6.39080568]
[1734257239651,1.96,219.81,219.77,6.39080568]
[1734257240256,2.2753,219.8,219.77,6.39080568]
[1734257240658,1.96,219.81,219.79,6.39080568]
[1734257241556,4.2352,219.81,219.75,2.2758]
[1734257241756,4.2352,219.81,219.77,6.39080568]
[1734257245364,4.2352,219.81,219.79,6.39080568]
[1734257245862,2.2753,219.8,219.75,2.2758]
[1734257246166,1.96,219.81,219.74,5.40889363]
[1734257246464,1.96,219.81,219.77,6.39080568]
[1734257246666,2.2754,219.79,219.77,6.39080568]
[1734257250272,1.96,219.81,219.77,6.39080568]
[1734257250469,1.96,219.81,219.79,6.39080568]
[1734257250776,2.2752,219.81,219.79,6.39080568]
[1734257252169,2.2751,219.82,219.79,6.39080568]
[1734257254768,2.2753,219.81,219.75,2.2758]
[1734257254975,2.2753,219.81,219.78,6.39080568]
[1734257256570,2.2753,219.81,219.79,6.39080568]
[1734257258970,2.2751,219.83,219.79,6.39080568]
[1734257260576,2.2751,219.83,219.81,6.39080568]
[1734257261672,4.235,219.84,219.81,6.39080568]
[1734257262273,2.275,219.84,219.81,6.39080568]
[1734257262469,67.83877187,219.85,219.81,6.39080568]
[1734257262775,2.275,219.83,219.81,6.39080568]
[1734257277584,2.275,219.83,219.77,2.2756]
[1734257277787,2.275,219.83,219.8,6.39080568]
[1734257282595,4.2349,219.84,219.8,6.39080568]
[1734257282994,4.2349,219.84,219.82,6.39080568]
[1734257286695,4.2349,219.84,219.78,2.2755]
[1734257286895,4.2349,219.84,219.82,6.39080568]
[1734257288900,1.4533,219.88,219.82,6.39080568]
[1734257289093,4.2346,219.87,219.84,6.39080568]
[1734257292194,2.2746,219.87,219.84,6.39080568]
[1734257293299,2.2748,219.86,219.84,6.39080568]
[1734257299596,1.96,219.88,219.84,8.66570568]
[1734257299798,1.96,219.88,219.84,6.39080568]
[1734257300700,1.96,219.88,219.86,6.39080568]
[1734257301400,1.96,219.89,219.86,6.39080568]
[1734257301600,1.96,219.9,219.86,6.39080568]
[1734257301800,4.2344,219.9,219.86,6.39080568]
[1734257301999,2.2744,219.9,219.86,6.39080568]
[1734257302797,1.96,219.91,219.86,6.39080568]
[1734257303698,2.2743,219.9,219.86,6.39080568]
[1734257303901,1.96,219.91,219.86,6.39080568]
[1734257304501,6.39080568,219.93,219.86,6.39080568]
[1734257304704,2.2744,219.89,219.86,6.39080568]
[1734257305604,4.2343,219.9,219.86,6.39080568]
[1734257306006,2.2743,219.9,219.86,6.39080568]
[1734257313412,1.96,219.91,219.86,6.39080568]
[1734257313612,2.2744,219.89,219.86,6.39080568]
[1734257313813,1.96,219.91,219.82,2.275]
[1734257314118,6.39080568,219.9,219.83,6.39080568]
[1734257314818,2.2745,219.88,219.83,6.39080568]
[1734257315012,1.96,219.87,219.83,6.39080568]
[1734257315620,2.2747,219.86,219.83,6.39080568]
[1734257316216,2.2747,219.86,219.79,87.06843582]
[1734257316412,2.2747,219.86,219.83,6.39080568]
[1734257317123,2.2747,219.86,219.84,6.39080568]
[1734257318217,4.2346,219.87,219.84,6.39080568]
[1734257319228,1.96,219.87,219.84,6.39080568]
[1734257319823,1.96,219.87,219.86,6.39080568]
[1734257320026,2.2745,219.89,219.86,6.39080568]
[1734257320219,2.2743,219.91,219.86,6.39080568]
[1734257320423,4.2343,219.91,219.86,6.39080568]
[1734257320720,1.96,219.91,219.79,85.10843582]
[1734257320926,2.2744,219.89,219.86,6.39080568]
[1734257322424,1.96,219.91,219.86,6.39080568]
[1734257322617,2.2743,219.9,219.86,6.39080568]
[1734257323222,4.2342,219.91,219.86,6.39080568]
[1734257324530,4.2342,219.91,219.88,6.39080568]
[1734257325123,1.96,219.91,219.88,6.39080568]
[1734257325932,4.2342,219.91,219.88,6.39080568]
[1734257327729,4.2342,219.91,219.86,6.39080568]
[1734257328332,4.2342,219.91,219.85,2.2748]
[1734257328633,4.2342,219.91,219.86,6.39080568]
[1734257329229,4.2342,219.91,219.87,6.39080568]
[1734257332125,4.2342,219.91,219.79,85.10843582]
[1734257332334,4.2342,219.91,219.86,6.39080568]
[1734257334227,4.2342,219.91,219.88,6.39080568]
[1734257334830,1.96,219.92,219.88,6.39080568]
[1734257335633,2.2741,219.93,219.88,6.39080568]
[1734257335830,4.2341,219.93,219.88,6.39080568]
[1734257336031,4.2341,219.93,219.88,8.66530568]
[1734257336431,4.2341,219.93,219.88,6.39080568]
[1734257338439,2.2741,219.92,219.88,6.39080568]
[1734257339636,1.96,219.93,219.79,85.10843582]
[1734257339840,2.2743,219.9,219.87,6.39080568]
[1734257340844,4.2344,219.89,219.85,6.39080568]
[1734257341641,2.2747,219.86,219.81,2.2752]
[1734257341845,2.2747,219.86,219.84,6.39080568]
[1734257343839,2.275,219.83,219.79,85.10843582]
[1734257344047,1.96,219.85,219.81,6.39080568]
[1734257344243,1.96,219.85,219.8,5.07849775]
[1734257344440,1.96,219.85,219.77,3.0135]
[1734257344441,1.96,219.85,219.83,6.39080568]
[1734257345750,4.2348,219.85,219.83,6.39080568]
[1734257346350,1.96,219.86,219.83,6.39080568]
[1734257354650,4.2345,219.88,219.83,6.39080568]
[1734257355151,4.2345,219.88,219.83,8.66580568]
[1734257355454,4.2345,219.88,219.84,5.07352916]
[1734257355650,2.2746,219.87,219.83,6.39080568]
[1734257356856,1.96,219.88,219.83,6.39080568]
[1734257356857,4.2346,219.88,219.83,6.39080568]
[1734257357557,4.2346,219.88,219.84,5.07368305]
[1734257357758,4.2346,219.88,219.85,6.39080568]
[1734257363963,1.96,219.88,219.85,6.39080568]
[1734257364858,1.96,219.95,219.87,6.39080568]
[1734257365052,1.96,219.95,219.88,5.07069213]
[1734257365256,1.96,219.95,219.89,5.07069213]
[1734257365451,2.2739,219.94,219.91,6.39080568]
[1734257365954,4.2338,219.95,219.91,6.39080568]
[1734257366658,1.96,219.95,219.91,6.39080568]
[1734257367056,69.32085749,219.96,219.91,6.39080568]
[1734257367258,1.96,219.95,219.93,6.39080568]
[1734257369852,67.04715749,219.96,219.93,6.39080568]
[1734257370055,1.96,219.95,219.93,6.39080568]
[1734257370256,1.96,219.95,219.91,2.2741]